bitfinex/quotes_ETHUSD_20250824
["timestamp","ask_amount","ask_price","bid_price","bid_amount"]
[1756029531560,5.87165675,4782.9,4782.8,0.02]
[1756029531882,7.96244357,4782.9,4782.8,0.02]
[1756029532377,7.00105852,4782.9,4782.8,0.02]
[1756029533044,7.32831143,4782.9,4782.8,0.02]
[1756029533446,9.41909317,4782.9,4782.8,0.02]
[1756029533646,8.28969648,4782.9,4782.8,0.02]
[1756029535208,8.09324476,4782.9,4782.8,0.02]
[1756029535493,8.28918647,4782.9,4782.8,0.02]
[1756029535694,0.66,4782.6,4782.1,0.001]
[1756029535865,0.3147,4782.2,4782.1,0.001]
[1756029536193,5.00779879,4782.2,4782.1,0.001]
[1756029536390,7.53529011,4782.2,4782.1,0.001]
[1756029536697,8.96499894,4782.2,4782.1,0.001]
[1756029538506,8.76905723,4782.2,4782.1,0.001]
[1756029538884,8.10905723,4782.2,4782.1,0.001]
[1756029539669,7.7817484,4782.2,4782.1,0.001]
[1756029540396,0.5356484,4782.2,4782.1,0.001]
[1756029540695,4.0246484,4782.2,4782.1,0.001]
[1756029540896,4.58824358,4782.2,4782.1,0.001]
[1756029541078,5.03064358,4782.2,4782.1,0.001]
[1756029541278,5.34534358,4782.2,4782.1,0.001]
[1756029541870,4.58824358,4782.2,4782.1,0.001]
[1756029542074,3.9408084,4782.2,4782.1,0.001]
[1756029542579,0.4518084,4782.2,4782.1,2.09213151]
[1756029542916,3.9408084,4782.2,4782.1,2.09213151]
[1756029544279,4.6979084,4782.2,4782.1,0.001]
[1756029545382,4.7817454,4782.2,4782.1,0.001]
[1756029546304,4.0246454,4782.2,4782.1,0.001]
[1756029546713,4.4670454,4782.2,4782.1,0.001]
[1756029547316,4.7817454,4782.2,4782.1,0.001]
[1756029547479,4.3393454,4782.2,4782.1,0.001]
[1756029547682,4.4670454,4782.2,4782.1,2.09213151]
[1756029547981,4.0246454,4782.2,4782.1,2.09213151]
[1756029548308,4.4670454,4782.2,4782.1,0.001]
[1756029549017,4.7817454,4782.2,4782.1,0.001]
[1756029550482,5.34534058,4782.2,4782.1,0.001]
[1756029552192,6.38987729,4782.2,4782.1,0.001]
[1756029552398,5.83346362,4782.2,4782.1,0.001]
[1756029553991,5.63762212,4782.2,4782.1,0.001]
[1756029554188,5.83355266,4782.2,4782.1,0.001]
[1756029554725,5.83356731,4782.2,4782.1,0.001]
[1756029555030,5.83356732,4782.2,4782.1,0.001]
[1756029555521,6.16087845,4782.2,4782.1,0.001]
[1756029556519,9.16087845,4782.2,4782.1,0.001]
[1756029558195,10.28931404,4782.2,4782.1,0.001]
[1756029558803,9.16087845,4782.2,4782.1,0.001]
[1756029559218,10.28931404,4782.2,4782.1,0.001]
[1756029559529,9.96200291,4782.2,4782.1,0.001]
[1756029561015,8.83356732,4782.2,4782.1,0.001]
[1756029562035,10.9246551,4782.2,4782.1,0.001]
[1756029562594,9.16089276,4782.2,4782.1,0.001]
[1756029562797,11.25198054,4782.2,4782.1,0.001]
[1756029563191,9.16089276,4782.2,4782.1,0.001]
[1756029563419,11.25198054,4782.2,4782.1,0.001]
[1756029563626,9.16089276,4782.2,4782.1,0.001]
[1756029564031,11.25198054,4782.2,4782.1,0.001]
[1756029564239,11.25235974,4782.2,4782.1,0.001]
[1756029564733,11.25235839,4782.2,4782.1,0.001]
[1756029564933,9.16127061,4782.2,4782.1,0.001]
[1756029565105,11.25235685,4782.2,4782.1,0.001]
[1756029565703,9.16126907,4782.2,4782.1,0.001]
[1756029566221,3.66,4782.1,4781.8,0.02]
[1756029566398,3.9531,4781.9,4781.8,0.02]
[1756029566602,4.60100761,4781.9,4781.8,0.02]
[1756029566928,5.15755561,4781.9,4781.8,0.02]
[1756029570806,5.35360322,4781.9,4781.8,0.02]
[1756029573617,5.68090726,4781.9,4781.8,0.02]
[1756029574239,5.68088888,4781.9,4781.8,0.02]
[1756029577541,9.17088888,4781.9,4781.8,0.02]
[1756029577852,10.29072466,4781.9,4781.8,0.02]
[1756029578633,10.29072466,4781.9,4781.8,0.021]
[1756029579523,10.58382466,4781.9,4781.8,0.021]
[1756029579849,9.81802466,4781.9,4781.8,0.021]
[1756029580420,10.11112466,4781.9,4781.8,0.021]
[1756029580618,9.81802466,4781.9,4781.8,0.021]
[1756029580821,10.29072466,4781.9,4781.8,0.021]
[1756029581022,10.29072466,4781.9,4781.3,0.001]
[1756029581254,1.13066571,4781.5,4781.3,0.001]
[1756029581543,4.13787262,4781.4,4781.3,0.001]
[1756029581861,4.76673162,4781.4,4781.3,0.001]
[1756029584353,4.7670301,4781.4,4781.3,0.001]
[1756029585661,5.09433445,4781.4,4781.3,0.001]
[1756029587359,6.70333445,4781.4,4781.3,0.001]
[1756029589274,6.3760301,4781.4,4781.3,0.001]
[1756029589873,7.50669581,4781.4,4781.3,0.001]
[1756029593531,7.83399823,4781.4,4781.3,0.001]
[1756029594171,7.63763553,4781.4,4781.3,0.001]
[1756029594369,7.83408594,4781.4,4781.3,0.001]
[1756029596583,8.57325874,4781.4,4781.3,0.001]
[1756029597575,8.57327146,4781.4,4781.3,0.001]
[1756029598768,8.26527146,4781.4,4781.3,0.001]
[1756029599280,7.83507146,4781.4,4781.3,0.001]
[1756029599573,4.34507146,4781.4,4781.3,0.001]
[1756029599744,7.83507146,4781.4,4781.3,0.001]
[1756029600744,8.26527146,4781.4,4781.3,0.001]
[1756029600945,7.83507146,4781.4,4781.3,0.001]
[1756029601346,7.83593266,4781.4,4781.3,0.001]
[1756029601952,8.26613266,4781.4,4781.3,0.001]
[1756029602852,7.13449415,4781.4,4781.3,0.001]
[1756029603081,7.13449919,4781.4,4781.3,0.001]
[1756029603271,7.13449905,4781.4,4781.3,0.001]
[1756029603475,6.50564005,4781.4,4781.3,0.001]
[1756029603672,2.58544005,4781.4,4781.3,0.001]
[1756029603875,2.25813763,4781.4,4781.3,2.3057377]
[1756029604192,5.5506696,4781.4,4781.3,2.3057377]
[1756029604523,5.5506696,4781.4,4781.3,2.09248139]
[1756029604857,2.0616696,4781.4,4781.3,2.09248139]
[1756029605051,5.5506696,4781.4,4781.3,2.09248139]
[1756029605248,6.11612241,4781.4,4781.3,2.09248139]
[1756029606489,5.5506696,4781.4,4781.3,2.09248139]
[1756029612205,5.5506696,4781.4,4781.3,0.001]
[1756029612206,6.2888696,4781.4,4781.3,0.001]
[1756029613404,6.61617101,4781.4,4781.3,0.001]
[1756029614399,6.81239042,4781.4,4781.3,0.001]
[1756029614587,7.94402893,4781.4,4781.3,0.001]
[1756029615414,12.76003778,4781.4,4781.3,0.001]
[1756029615591,3.66,4781.3,4780.8,0.021]
[1756029615790,0.968,4780.9,4780.8,0.021]
[1756029615976,8.10588901,4780.9,4780.8,0.021]
[1756029616173,9.66584108,4780.9,4780.8,0.021]
[1756029616404,10.29482008,4780.9,4780.8,0.021]
[1756029616575,10.62218975,4780.9,4780.8,0.021]
[1756029617504,9.49243768,4780.9,4780.8,0.021]
[1756029617707,10.62218975,4780.9,4780.8,0.021]
[1756029618217,9.49243768,4780.9,4780.8,0.021]
[1756029619384,9.16506801,4780.9,4780.8,0.021]
[1756029620486,5.01606801,4780.9,4780.8,0.021]
[1756029620709,8.50506801,4780.9,4780.8,0.021]
[1756029621081,5.01606801,4780.9,4780.8,0.021]
[1756029621282,8.50506801,4780.9,4780.8,0.021]
[1756029623015,9.16471651,4780.9,4780.8,0.021]
[1756029623391,9.49209233,4780.9,4780.8,0.021]
[1756029623595,9.49209233,4780.9,4780.1,0.04]
[1756029623596,5.75173982,4780.8,4780.1,0.04]
[1756029623795,0.87123427,4780.2,4780.1,0.04]
[1756029624023,6.42190387,4780.2,4780.1,0.04]
[1756029624226,6.8799101,4780.2,4780.1,0.04]
[1756029624526,7.5089551,4780.2,4780.1,0.04]
[1756029624724,7.5081551,4780.2,4780.1,0.04]
[1756029624937,7.83555184,4780.2,4780.1,0.04]
[1756029627299,7.27161134,4780.2,4780.1,0.04]
[1756029628829,3.01811134,4780.2,4780.1,0.0748]
[1756029628998,6.50811134,4780.2,4780.1,0.0748]
[1756029629530,6.50811134,4780.2,4780.1,0.0758]
[1756029629531,5.87906634,4780.2,4780.1,0.0758]
[1756029630201,5.87906634,4780.2,4780.1,0.041]
[1756029630938,5.5516696,4780.2,4780.1,0.041]
[1756029631728,6.0097696,4780.2,4780.1,0.041]
[1756029632442,6.00779522,4780.2,4780.1,0.041]
[1756029632999,2.82499522,4780.2,4780.1,0.041]
[1756029633348,6.31499522,4780.2,4780.1,0.041]
[1756029633504,6.94403822,4780.2,4780.1,0.041]
[1756029633701,3.45403822,4780.2,4780.1,0.041]
[1756029633900,6.94403822,4780.2,4780.1,0.041]
[1756029634430,7.50740724,4780.2,4780.1,0.041]
[1756029634798,7.83480211,4780.2,4780.1,0.041]
[1756029635597,7.37670211,4780.2,4780.1,0.041]
[1756029635822,7.06950211,4780.2,4780.1,0.041]
[1756029636113,7.83480211,4780.2,4780.1,0.041]
[1756029636306,7.27143309,4780.2,4780.1,0.041]
[1756029637328,6.50613309,4780.2,4780.1,0.041]
[1756029637531,7.27143309,4780.2,4780.1,0.041]
[1756029639132,10.11544145,4780.2,4780.1,0.041]
[1756029639534,13.21920181,4780.2,4780.1,0.041]
[1756029639715,2.09209397,4779.9,4779.8,0.02]
[1756029639914,9.53579524,4779.9,4779.8,0.02]
[1756029640238,9.99389524,4779.9,4779.8,0.02]
[1756029640446,4.49568327,4779.9,4779.8,0.02]
[1756029640617,7.98568327,4779.9,4779.8,0.02]
[1756029641114,4.22038327,4779.9,4779.8,0.02]
[1756029641329,4.02457722,4779.9,4779.8,0.0548]
[1756029641914,4.02457722,4779.9,4779.8,0.02]
[1756029642113,4.78987722,4779.9,4779.8,0.02]
[1756029642318,5.73786005,4779.9,4779.8,0.02]
[1756029642745,5.65397805,4779.9,4779.8,0.02]
[1756029642943,6.06528821,4779.9,4779.8,0.02]
[1756029643145,6.21008821,4779.9,4779.8,0.02]
[1756029643445,5.31326748,4779.9,4779.8,0.02]
[1756029644730,5.04327381,4779.9,4779.8,0.02]
[1756029644929,6.44117984,4779.9,4779.8,0.02]
[1756029646214,5.98307984,4779.9,4779.8,0.02]
[1756029646408,6.44117984,4779.9,4779.8,0.02]
[1756029647243,4.54906007,4779.9,4779.8,0.02]
[1756029647442,4.54906007,4779.9,4779.8,0.021]
[1756029648815,1.05906007,4779.9,4779.8,0.021]
[1756029649021,4.54906007,4779.9,4779.8,0.021]
[1756029649715,5.00716007,4779.9,4779.8,0.021]
[1756029649915,5.31436007,4779.9,4779.8,0.021]
[1756029651013,4.98692385,4779.9,4779.8,0.021]
[1756029651633,7.07901782,4779.9,4779.8,0.021]
[1756029652057,4.98692385,4779.9,4779.8,0.021]
[1756029652857,4.22180074,4779.9,4779.8,0.021]
[1756029653743,4.22181532,4779.9,4779.8,0.021]
[1756029653947,4.97251532,4779.9,4779.8,0.021]
[1756029654318,7.06460929,4779.9,4779.8,0.021]
[1756029654519,7.39204301,4779.9,4779.8,0.021]
[1756029655538,8.51995537,4779.9,4779.8,0.021]
[1756029657024,8.71611988,4779.9,4779.8,0.021]
[1756029657673,7.58820752,4779.9,4779.8,0.021]
[1756029658965,11.24820752,4779.9,4779.8,0.021]
[1756029659178,11.24820752,4779.9,4779.1,0.04]
[1756029659179,2.0924004,4779.2,4779.1,0.04]
[1756029659377,8.14864172,4779.2,4779.1,0.04]
[1756029659677,8.59004172,4779.2,4779.1,0.04]
[1756029659983,8.67393372,4779.2,4779.1,0.04]
[1756029660282,6.58153332,4779.2,4779.1,0.04]
[1756029660833,3.09153332,4779.2,4779.1,0.04]
[1756029661063,6.58153332,4779.2,4779.1,0.04]
[1756029661639,6.5815577,4779.2,4779.1,0.04]
[1756029662069,8.6739581,4779.2,4779.1,0.04]
[1756029662382,8.47778021,4779.2,4779.1,0.04]
[1756029662595,8.67395926,4779.2,4779.1,0.04]
[1756029662995,6.90903661,4779.2,4779.1,0.04]
[1756029664149,6.59973661,4779.2,4779.1,0.04]
[1756029664754,6.59973661,4779.2,4779.1,0.0748]
[1756029664755,2.66833661,4779.2,4779.1,0.0748]
[1756029665090,6.15833661,4779.2,4779.1,0.0758]
[1756029665294,6.91166081,4779.2,4779.1,0.0758]
[1756029666690,6.91166081,4779.2,4779.1,0.041]
[1756029667701,7.66236081,4779.2,4779.1,0.041]
[1756029667858,6.90903661,4779.2,4779.1,0.041]
[1756029668889,6.15833661,4779.2,4779.1,0.041]
[1756029669455,6.59973661,4779.2,4779.1,0.041]
[1756029670898,6.15833661,4779.2,4779.1,0.0758]
[1756029671388,6.07444461,4779.2,4779.1,0.0758]
[1756029671561,5.87826556,4779.2,4779.1,0.0758]
[1756029671774,6.07454745,4779.2,4779.1,0.0758]
[1756029672189,5.87826556,4779.2,4779.1,0.0758]
[1756029672391,6.07454745,4779.2,4779.1,0.0758]
[1756029672564,6.07454745,4779.2,4779.1,2.16824418]
[1756029672565,6.0745532,4779.2,4779.1,2.16824418]
[1756029672874,6.0745532,4779.2,4779.1,0.041]
[1756029673074,6.0745532,4779.2,4779.1,0.0758]
[1756029674004,6.0745532,4779.2,4779.1,2.16824418]
[1756029674363,6.82832382,4779.2,4779.1,0.0758]
[1756029674559,6.82832382,4779.2,4779.1,2.16824418]
[1756029675661,6.82832382,4779.2,4779.1,0.0758]
[1756029676005,3.33832382,4779.2,4779.1,2.16824418]
[1756029676177,6.82832382,4779.2,4779.1,2.16824418]
[1756029677102,6.82832382,4779.2,4779.1,0.0758]
[1756029677274,7.57902382,4779.2,4779.1,0.041]
[1756029677472,6.63203618,4779.2,4779.1,0.041]
[1756029678682,7.38273618,4779.2,4779.1,0.041]
[1756029678880,7.05525843,4779.2,4779.1,0.041]
[1756029679276,8.59016408,4779.2,4779.1,0.041]
[1756029680479,9.44643176,4779.2,4779.1,0.041]
[1756029680692,2.09253175,4778.9,4778.8,0.02]
[1756029680886,7.866571,4778.9,4778.8,0.02]
[1756029681085,8.307971,4778.9,4778.8,0.02]
[1756029681575,8.30785651,4778.9,4778.8,0.02]
[1756029682078,10.83744862,4778.9,4778.8,0.02]
[1756029682400,10.83734606,4778.9,4778.8,0.02]
[1756029684217,10.92125306,4778.9,4778.8,0.02]
[1756029684727,11.24876617,4778.9,4778.8,0.02]
[1756029684894,11.24842091,4778.9,4778.8,0.02]
[1756029685501,2.0928383,4778.2,4778.1,0.041]
[1756029685823,7.93212611,4778.2,4778.1,0.041]
[1756029686022,6.27138781,4778.2,4778.1,0.041]
[1756029686327,10.07337674,4778.2,4778.1,0.041]
[1756029687110,7.98053844,4778.2,4778.1,0.041]
[1756029688030,10.07337674,4778.2,4778.1,0.041]
[1756029688398,7.98053844,4778.2,4778.1,0.041]
[1756029688599,13.73337674,4778.2,4778.1,0.041]
[1756029688815,13.52780212,4778.2,4778.1,0.041]
[1756029689001,2.0928821,4778.1,4777.8,0.02]
[1756029689208,6.04146971,4777.9,4777.8,0.02]
[1756029689413,6.88491588,4777.9,4777.8,0.02]
[1756029689608,7.40094688,4777.9,4777.8,0.02]
[1756029691533,7.40019184,4777.9,4777.8,0.02]
[1756029692032,7.40018005,4777.9,4777.8,0.02]
[1756029693812,7.72779502,4777.9,4777.8,0.02]
[1756029696042,7.27600721,4777.9,4777.8,0.02]
[1756029696243,7.72559935,4777.9,4777.8,0.02]
[1756029698928,3.0,4777.8,4777.6,0.001]
[1756029699130,8.0855438,4777.7,4777.6,0.001]
[1756029699348,10.61070112,4777.7,4777.6,0.001]
[1756029699637,10.69463312,4777.7,4777.6,0.001]
[1756029701318,10.49918146,4777.7,4777.6,0.001]
[1756029701642,10.69423783,4777.7,4777.6,0.001]
[1756029703519,10.69410111,4777.7,4777.6,0.001]
[1756029705947,10.8892636,4777.7,4777.6,0.001]
[1756029706460,10.88942358,4777.7,4777.6,0.001]
[1756029707272,11.21705893,4777.7,4777.6,0.001]
[1756029708365,0.66,4777.2,4777.1,0.04]
[1756029708569,11.30473181,4777.2,4777.1,0.1404]
[1756029709161,11.77275874,4777.2,4777.1,0.1404]
[1756029709334,5.52748235,4777.2,4777.1,0.1404]
[1756029709537,9.01948235,4777.2,4777.1,0.2032]
[1756029709766,9.01948235,4777.2,4777.1,0.1404]
[1756029709936,8.69185542,4777.2,4777.1,0.1404]
[1756029710138,9.81705299,4777.2,4777.1,0.1404]
[1756029711168,9.81816863,4777.2,4777.1,0.1404]
[1756029711466,6.30382375,4777.2,4777.1,0.2032]
[1756029711666,5.55257106,4777.2,4777.1,2.29652021]
[1756029711970,0.45057106,4777.2,4777.1,2.73751648]
[1756029714070,4.05549283,4777.8,4777.7,2.09305732]
[1756029714231,4.50662933,4777.8,4777.7,2.19345732]
[1756029714433,4.50662933,4777.8,4777.7,2.25625732]
[1756029714434,3.9431365,4777.8,4777.7,2.25625732]
[1756029714678,3.9431365,4777.8,4777.7,2.62839566]
[1756029714850,0.4511365,4777.8,4777.7,2.69119566]
[1756029715538,3.9431365,4777.8,4777.7,2.69119566]
[1756029715952,3.9431365,4777.8,4777.7,2.62839566]
[1756029716979,3.9431365,4777.8,4777.7,2.69119566]
[1756029718033,0.4511365,4777.8,4777.7,2.69119566]
[1756029718238,0.45106384,4777.8,4777.7,2.69119566]
[1756029718638,0.45106384,4778.0,4777.9,2.09296971]
[1756029718855,0.45106384,4778.0,4777.9,2.19336971]
[1756029719064,0.45106384,4778.0,4777.9,2.25616971]
[1756029719272,0.002,4778.1,4778.0,2.09292591]
[1756029719564,0.002,4778.1,4778.0,2.25612591]
[1756029719740,0.002,4778.1,4778.0,2.73452931]
[1756029721771,1e-08,4778.1,4778.0,5.73452931]
[1756029721976,1e-08,4778.1,4778.0,5.83932931]
[1756029722192,1e-08,4778.1,4778.0,6.29024131]
[1756029722776,1e-08,4778.1,4778.0,6.95024131]
[1756029723585,1e-08,4778.8,4778.7,2.09261933]
[1756029723897,1e-08,4778.8,4778.7,2.40228126]
[1756029724073,1e-08,4778.8,4778.7,5.56988126]
[1756029724725,1e-08,4779.1,4778.7,5.56988126]
[1756029724900,1e-08,4779.1,4779.0,2.09248796]
[1756029725221,1e-08,4779.1,4779.0,2.29768796]
[1756029725430,1e-08,4779.1,4779.0,6.12681046]
[1756029725615,1e-08,4779.1,4779.0,6.18961046]
[1756029726969,1e-08,4779.1,4779.0,6.12681046]
[1756029727621,1e-08,4779.1,4779.0,6.18961046]
[1756029727919,1e-08,4779.1,4779.0,0.8291225]
[1756029727920,0.77170001,4779.1,4779.0,0.8291225]
[1756029728089,0.77170001,4779.1,4778.7,2.30186958]
[1756029728294,0.4669,4779.0,4778.9,2.0924955]
[1756029728472,0.7717,4779.0,4778.9,2.0924955]
[1756029728675,1e-08,4779.1,4779.0,2.09248796]
[1756029728676,3.50200001,4779.1,4779.0,2.09248796]
[1756029728893,4.27370001,4779.1,4779.0,2.09248796]
[1756029729607,1e-08,4779.1,4779.0,2.51098631]
[1756029729784,1e-08,4779.1,4779.0,2.61138631]
[1756029733914,1e-08,4779.1,4779.0,5.61138631]
[1756029734115,1e-08,4779.1,4779.0,5.71618631]
[1756029734315,1e-08,4779.1,4779.0,6.34508731]
[1756029736085,1e-08,4779.1,4779.0,6.40788731]
[1756029738333,1e-08,4779.1,4779.0,7.06788731]
[1756029738493,0.022,4779.8,4779.7,2.09218151]
[1756029738494,1e-08,4779.8,4779.7,2.09218151]
[1756029738690,1e-08,4779.8,4779.7,8.69258151]
[1756029739016,1e-08,4779.8,4779.7,8.79738151]
[1756029739199,1e-08,4779.8,4779.7,8.88122251]
[1756029742340,0.022,4780.8,4779.9,0.66]
[1756029742494,0.002,4781.1,4781.0,2.09161263]
[1756029742694,0.45155765,4781.1,4781.0,2.09161263]
[1756029742999,1.19825765,4781.1,4781.0,2.09161263]
[1756029743203,1.19825765,4781.1,4780.9,2.0916503]
[1756029743403,0.89235765,4781.0,4780.9,2.0916503]
[1756029743603,1.19625765,4781.0,4780.9,2.0916503]
[1756029743805,1.76008745,4781.0,4780.9,2.0916503]
[1756029744239,1.19625765,4781.0,4780.9,2.0916503]
[1756029746258,1.94751034,4781.0,4780.9,2.0916503]
[1756029747241,1.19625765,4781.0,4780.9,2.0916503]
[1756029748123,2.32145522,4781.0,4780.9,2.0916503]
[1756029749121,1.19625765,4781.0,4780.9,2.0916503]
[1756029749323,2.32290475,4781.0,4780.9,2.0916503]
[1756029750165,1.19625765,4781.0,4780.9,2.0916503]
[1756029750742,1.19825765,4781.0,4780.9,2.0916503]
[1756029752168,0.45155765,4781.0,4780.9,2.0916503]
[1756029752348,1.57861327,4781.0,4780.9,2.61238893]
[1756029752555,0.45155765,4781.0,4780.9,6.11138893]
[1756029753226,0.45155765,4781.0,4780.9,9.11138893]
[1756029755519,1e-08,4781.1,4781.0,5.09161263]
[1756029755759,1e-08,4781.1,4781.0,6.83824638]
[1756029755959,1e-08,4781.1,4781.0,6.94304638]
[1756029759127,1e-08,4781.1,4781.0,8.23124938]
[1756029759769,0.002,4781.6,4781.5,2.09139391]
[1756029759959,0.002,4781.6,4781.5,8.68979391]
[1756029760165,0.002,4781.6,4781.5,10.24267428]
[1756029763093,0.002,4781.6,4781.5,10.32648128]
[1756029763464,1e-08,4781.6,4781.5,10.32648128]
[1756029766279,1e-08,4781.6,4781.5,10.22608128]
[1756029767074,1e-08,4781.6,4781.5,10.32648128]
[1756029769383,0.44280001,4781.6,4781.5,10.22608128]
[1756029769554,0.74670001,4781.6,4781.5,10.22608128]
[1756029769945,0.74670001,4781.6,4781.5,10.12128128]
[1756029770148,0.74670001,4781.6,4781.5,5.67320091]
[1756029770373,1.19744137,4781.6,4781.5,5.67320091]
[1756029770680,1.19744137,4781.6,4781.5,5.58939391]
[1756029771183,0.74670001,4781.6,4781.5,5.58939391]
[1756029772278,0.74670001,4781.6,4781.5,2.09139391]
[1756029774774,1.19765714,4781.6,4781.5,2.09139391]
[1756029775290,0.74670001,4781.6,4781.5,2.09139391]
[1756029780005,1.1980753,4781.6,4781.5,2.09139391]
[1756029780876,1.19820703,4781.6,4781.5,2.09139391]
[1756029784698,1.19820703,4781.6,4781.5,2.09239391]
[1756029785569,1.19820703,4781.6,4781.5,0.001]
[1756029786202,1.19820703,4781.6,4781.5,2.09239391]
[1756029786498,0.74670001,4781.6,4781.5,2.09239391]
[1756029786706,1.19850308,4781.6,4781.5,2.09239391]
[1756029788915,1.19850308,4781.6,4781.5,0.001]
[1756029789110,1.19850308,4781.6,4781.5,2.09239391]
[1756029789932,0.45180308,4781.6,4781.5,2.19279391]
[1756029790226,0.45180308,4781.6,4781.5,2.97052055]
[1756029790924,1e-08,4781.6,4781.5,6.13812055]
[1756029791786,1e-08,4781.6,4781.5,9.63112055]
[1756029791984,1e-08,4781.6,4781.5,9.65212755]
[1756029794843,0.73420001,4781.6,4781.5,6.05872755]
[1756029795020,0.73420001,4781.6,4781.5,5.58539391]
[1756029795221,0.73420001,4781.6,4781.5,2.09239391]
[1756029795623,1e-08,4781.6,4781.5,5.58539391]
[1756029795800,1e-08,4781.6,4781.5,5.68579391]
[1756029796601,1e-08,4781.6,4781.5,5.79059391]
[1756029796796,1e-08,4781.6,4781.5,9.62396775]
[1756029797017,1e-08,4781.6,4781.5,9.68676775]
[1756029797749,1e-08,4781.6,4781.5,9.62396775]
[1756029803554,0.78290001,4781.6,4781.5,9.52356775]
[1756029803852,0.78290001,4781.6,4781.5,2.09239391]
[1756029804175,1.23449963,4781.6,4781.5,0.001]
[1756029805464,1.23449963,4781.6,4781.5,2.09239391]
[1756029806046,1.23449963,4781.6,4781.5,0.001]
[1756029808030,1.23449963,4781.6,4781.5,2.09239391]
[1756029808831,1.23449963,4781.6,4781.5,0.001]
[1756029812250,1.79907868,4781.6,4781.5,0.001]
[1756029813747,1.23449963,4781.6,4781.5,2.09239391]
[1756029813945,0.45159963,4781.6,4781.5,2.09239391]
[1756029814186,0.45159963,4781.6,4781.5,2.19279391]
[1756029815187,1e-08,4781.6,4781.5,2.19279391]
[1756029815493,1e-08,4781.6,4781.5,2.98169931]
[1756029816389,1e-08,4781.6,4781.5,2.88129931]
[1756029820303,1e-08,4781.6,4781.5,2.98169931]
[1756029821149,1e-08,4781.6,4781.5,6.08649931]
[1756029821673,1e-08,4781.6,4781.5,6.14929931]
[1756029822306,0.002,4782.3,4781.7,0.66]
[1756029822475,0.002,4782.3,4782.2,2.19148778]
[1756029822673,0.002,4782.3,4782.2,8.79828778]
[1756029826827,0.002,4782.3,4782.2,8.88208278]
[1756029827892,0.002,4782.3,4782.2,8.94488278]
[1756029828357,0.002,4782.3,4782.2,8.88208278]
[1756029828558,0.002,4782.3,4782.2,10.46049585]
[1756029831349,0.002,4782.3,4782.2,10.52329585]
[1756029831739,0.04,4782.4,4782.3,5.09104405]
[1756029831970,0.04,4782.4,4782.3,5.19144405]
[1756029836069,0.04,4782.4,4782.3,5.27523605]
[1756029836264,0.04,4782.4,4782.3,6.53048974]
[1756029836432,0.7658,4782.4,4782.3,9.92608974]
[1756029836638,0.7658,4782.4,4782.3,9.84229774]
[1756029838571,0.4753,4782.4,4782.3,9.84229774]
[1756029840354,0.7658,4782.4,4782.3,9.84229774]
[1756029842794,0.7658,4782.4,4782.3,9.84129774]
[1756029842946,0.7658,4782.4,4782.3,8.58604405]
[1756029847282,0.7658,4782.4,4782.3,5.58604405]
[1756029847669,0.4753,4782.4,4782.3,5.58604405]
[1756029847868,0.04,4782.4,4782.3,5.68644405]
[1756029848204,0.04,4782.4,4782.3,6.3743806]
[1756029848477,0.4753,4782.4,4782.3,6.3743806]
[1756029848658,0.7658,4782.4,4782.3,6.3743806]
[1756029849382,0.4753,4782.4,4782.3,6.3743806]
[1756029850279,0.04,4782.4,4782.3,6.3743806]
[1756029851059,0.4753,4782.4,4782.3,6.3743806]
[1756029851792,0.04,4782.4,4782.3,6.3743806]
[1756029852157,0.4753,4782.4,4782.3,6.3743806]
[1756029852794,0.7658,4782.4,4782.3,6.3743806]
[1756029852965,0.04,4782.4,4782.3,6.3743806]
[1756029856417,0.4753,4782.4,4782.3,6.3743806]
[1756029857720,0.04,4782.4,4782.3,6.3743806]
[1756029858419,0.04,4782.4,4782.3,9.4747806]
[1756029858735,0.04,4782.4,4782.3,9.5795806]
[1756029862044,0.04,4782.4,4782.3,9.4791806]
[1756029862343,0.4848,4782.4,4782.3,9.4791806]
[1756029862910,0.04,4782.4,4782.3,9.4791806]
[1756029863221,0.7827,4782.4,4782.3,9.4751806]
[1756029863409,0.7827,4782.4,4782.3,8.68684405]
[1756029863614,0.7827,4782.4,4782.3,8.58204405]
[1756029867126,0.04,4782.4,4782.3,8.58204405]
[1756029867331,0.04,4782.4,4782.3,8.68244405]
[1756029868447,0.04,4782.4,4782.3,8.58204405]
[1756029868672,0.04,4782.4,4782.3,9.6599406]
[1756029868969,0.04,4782.4,4782.3,9.7603406]
[1756029869543,0.04,4782.4,4782.3,9.6599406]
[1756029870133,0.4848,4782.4,4782.3,9.6599406]
[1756029870333,0.7827,4782.4,4782.3,9.6599406]
[1756029870723,0.04,4782.4,4782.3,9.6599406]
[1756029871227,0.4848,4782.4,4782.3,9.6599406]
[1756029871425,0.7827,4782.4,4782.3,9.6599406]
[1756029872083,0.04,4782.4,4782.3,9.6599406]
[1756029872423,0.04,4782.4,4782.3,9.7603406]
[1756029875766,0.04,4782.4,4782.3,9.6599406]
[1756029876128,0.4848,4782.4,4782.3,9.6599406]
[1756029876569,0.7827,4782.4,4782.3,9.6599406]
[1756029877235,0.7827,4782.4,4782.3,8.58204405]
[1756029877855,0.7827,4782.4,4782.3,5.09104405]
[1756029878061,0.7827,4782.4,4782.3,8.58104405]
[1756029879934,0.3379,4782.4,4782.3,8.58104405]
[1756029880136,0.04,4782.4,4782.3,8.58104405]
[1756029880337,0.04,4782.4,4782.3,9.7592406]
[1756029882180,0.04,4782.4,4782.3,9.6588406]
[1756029882737,0.04,4782.4,4782.3,9.7592406]
[1756029883067,0.04,4782.4,4782.3,9.8640406]
[1756029883775,0.04,4782.4,4782.3,9.7636406]
[1756029883973,0.4848,4782.4,4782.3,9.7636406]
[1756029884174,0.7827,4782.4,4782.3,9.7636406]
[1756029885590,0.4848,4782.4,4782.3,9.7636406]
[1756029885901,0.3379,4782.4,4782.3,9.7636406]
[1756029886061,0.7827,4782.4,4782.3,9.7636406]
[1756029890105,0.7827,4782.4,4782.3,8.68584405]